[Event "Titled Tuesday Blitz April 05 Early 2022"]
[White "Papasimakopoulos, Alexandros"]
[Black "Horak, Martin"]
[WhiteFideId "4244125"]
[BlackFideId "367095"]
[WhiteElo "2340"]
[BlackElo "1997"]
[Result "1-0"]
[Round "05"]
[TimeControl "180+1"]
[Date "2022.04.05"]
[WhiteClock "0:00:12"]
[BlackClock "0:00:02"]

1. d4 {[%clk 0:02:48]}  Nf6 {[%clk 0:02:32]} 2. c4 {[%clk 0:02:48]}  b6 {[%clk 0:02:32]} 3. f3 {[%clk 0:02:48]}  Nc6 {[%clk 0:02:31]} 4. d5 {[%clk 0:02:47]}  Ne5 {[%clk 0:02:30]} 5. e4 {[%clk 0:02:48]}  e6 {[%clk 0:02:30]} 6. Be3 {[%clk 0:02:47]}  Bb4+ {[%clk 0:02:13]} 7. Nc3 {[%clk 0:02:47]}  Bxc3+ {[%clk 0:02:12]} 8. bxc3 {[%clk 0:02:47]}  O-O {[%clk 0:02:11]} 9. Nh3 {[%clk 0:02:44]}  Re8 {[%clk 0:02:08]} 10. Nf2 {[%clk 0:02:40]}  c6 {[%clk 0:01:46]} 11. f4 {[%clk 0:02:24]}  Nxc4 {[%clk 0:01:39]} 12. Bxc4 {[%clk 0:02:23]}  exd5 {[%clk 0:01:39]} 13. Be2 {[%clk 0:02:10]}  dxe4 {[%clk 0:01:34]} 14. c4 {[%clk 0:01:59]}  d5 {[%clk 0:01:25]} 15. O-O {[%clk 0:01:58]}  dxc4 {[%clk 0:01:10]} 16. Bxc4 {[%clk 0:01:55]}  Nd5 {[%clk 0:01:10]} 17. Bxd5 {[%clk 0:01:51]}  cxd5 {[%clk 0:01:05]} 18. Qd4 {[%clk 0:01:51]}  Bb7 {[%clk 0:01:03]} 19. Rfc1 {[%clk 0:01:46]}  Qd7 {[%clk 0:01:00]} 20. Nd1 {[%clk 0:01:24]}  Rac8 {[%clk 0:00:58]} 21. Qd2 {[%clk 0:01:17]}  Qa4 {[%clk 0:00:34]} 22. Nc3 {[%clk 0:01:03]}  Qa5 {[%clk 0:00:34]} 23. Rc2 {[%clk 0:00:47]}  Rc4 {[%clk 0:00:33]} 24. Ne2 {[%clk 0:00:38]}  Rxc2 {[%clk 0:00:28]} 25. Qxc2 {[%clk 0:00:38]}  Rc8 {[%clk 0:00:29]} 26. Qb2 {[%clk 0:00:33]}  Ba6 {[%clk 0:00:26]} 27. Nd4 {[%clk 0:00:33]}  Bd3 {[%clk 0:00:21]} 28. Nf5 {[%clk 0:00:32]}  Qc3 {[%clk 0:00:16]} 29. Bd4 {[%clk 0:00:29]}  Qxb2 {[%clk 0:00:14]} 30. Bxb2 {[%clk 0:00:30]}  Rc2 {[%clk 0:00:14]} 31. Bxg7 {[%clk 0:00:17]}  e3 {[%clk 0:00:13]} 32. Nxe3 {[%clk 0:00:16]}  Kxg7 {[%clk 0:00:06]} 33. Nxc2 {[%clk 0:00:16]}  Bxc2 {[%clk 0:00:07]} 34. Rc1 {[%clk 0:00:15]}  Bd3 {[%clk 0:00:07]} 35. Rd1 {[%clk 0:00:16]}  Bc4 {[%clk 0:00:07]} 36. a3 {[%clk 0:00:16]}  b5 {[%clk 0:00:05]} 37. Kf2 {[%clk 0:00:17]}  a5 {[%clk 0:00:04]} 38. Ke3 {[%clk 0:00:17]}  b4 {[%clk 0:00:04]} 39. axb4 {[%clk 0:00:18]}  axb4 {[%clk 0:00:05]} 40. Rb1 {[%clk 0:00:18]}  b3 {[%clk 0:00:05]} 41. Kd4 {[%clk 0:00:18]}  h5 {[%clk 0:00:04]} 42. g3 {[%clk 0:00:19]}  Kf6 {[%clk 0:00:04]} 43. Kc3 {[%clk 0:00:18]}  Kf5 {[%clk 0:00:03]} 44. Re1 {[%clk 0:00:17]}  Kg4 {[%clk 0:00:02]} 45. Re5 {[%clk 0:00:17]}  f5 {[%clk 0:00:02]} 46. Re8 {[%clk 0:00:12]}  Kh3 {[%clk 0:00:01]} 47. Rh8 {[%clk 0:00:12]}  Kxh2 {[%clk 0:00:02]} 48. Rxh5+ {[%clk 0:00:13]}  Kxg3 {[%clk 0:00:02]} 49. Rxf5 {[%clk 0:00:14]}  Kg4 {[%clk 0:00:01]} 50. Rf8 {[%clk 0:00:14]}  Kh4 {[%clk 0:00:01]} 51. f5 {[%clk 0:00:14]}  Kg5 {[%clk 0:00:02]} 52. f6 {[%clk 0:00:14]}  Kg6 {[%clk 0:00:03]} 53. Kb2 {[%clk 0:00:13]}  Kh6 {[%clk 0:00:03]} 54. Rg8 {[%clk 0:00:12]}  d4 {[%clk 0:00:02]} 55. Rg4 {[%clk 0:00:12]} 1-0


[Site "https://www.chess.com"]

[Event "Titled Tuesday Blitz April 05 Early 2022"]
[White "Perera Alfonso, Rene Humberto"]
[Black "Tsyhanchuk, Stanislav"]
[WhiteFideId "3514722"]
[BlackFideId "13505130"]
[WhiteElo "2313"]
[BlackElo "2078"]
[Result "0-1"]
[Round "05"]
[TimeControl "180+1"]
[Date "2022.04.05"]
[WhiteClock "0:00:22"]
[BlackClock "0:00:04"]

1. e4 {[%clk 0:03:00]}  c5 {[%clk 0:02:56]} 2. Nf3 {[%clk 0:02:59]}  d6 {[%clk 0:02:57]} 3. d4 {[%clk 0:02:46]}  cxd4 {[%clk 0:02:58]} 4. Nxd4 {[%clk 0:02:46]}  Nf6 {[%clk 0:02:58]} 5. Nc3 {[%clk 0:02:47]}  a6 {[%clk 0:02:58]} 6. Be3 {[%clk 0:02:47]}  e5 {[%clk 0:02:58]} 7. Nb3 {[%clk 0:02:45]}  Be6 {[%clk 0:02:59]} 8. h3 {[%clk 0:02:43]}  Be7 {[%clk 0:02:56]} 9. Qf3 {[%clk 0:02:32]}  O-O {[%clk 0:02:55]} 10. O-O-O {[%clk 0:02:28]}  Nbd7 {[%clk 0:02:55]} 11. Kb1 {[%clk 0:02:15]}  b5 {[%clk 0:02:54]} 12. g4 {[%clk 0:02:15]}  b4 {[%clk 0:02:49]} 13. Nd5 {[%clk 0:02:14]}  Bxd5 {[%clk 0:02:47]} 14. exd5 {[%clk 0:02:15]}  a5 {[%clk 0:02:45]} 15. Bd3 {[%clk 0:02:12]}  Nb6 {[%clk 0:02:34]} 16. Bxb6 {[%clk 0:02:09]}  Qxb6 {[%clk 0:02:34]} 17. g5 {[%clk 0:02:09]}  Nd7 {[%clk 0:02:34]} 18. Qf5 {[%clk 0:02:09]}  g6 {[%clk 0:02:18]} 19. Qxd7 {[%clk 0:02:08]}  Bxg5 {[%clk 0:02:19]} 20. h4 {[%clk 0:02:06]}  Bf4 {[%clk 0:02:09]} 21. h5 {[%clk 0:02:05]}  Ra7 {[%clk 0:02:09]} 22. Qc6 {[%clk 0:02:04]}  Qb8 {[%clk 0:02:03]} 23. Nd2 {[%clk 0:02:01]}  Rc8 {[%clk 0:01:47]} 24. Qa4 {[%clk 0:02:00]}  Qb7 {[%clk 0:01:38]} 25. Ne4 {[%clk 0:01:55]}  Qe7 {[%clk 0:01:33]} 26. hxg6 {[%clk 0:01:55]}  hxg6 {[%clk 0:01:31]} 27. Qb5 {[%clk 0:01:47]}  f5 {[%clk 0:01:19]} 28. Ng3 {[%clk 0:01:40]}  e4 {[%clk 0:01:04]} 29. Be2 {[%clk 0:01:39]}  Qc7 {[%clk 0:01:03]} 30. Qa4 {[%clk 0:01:36]}  b3 {[%clk 0:00:44]} 31. Qxb3 {[%clk 0:01:21]}  a4 {[%clk 0:00:25]} 32. Qc3 {[%clk 0:01:13]}  Qxc3 {[%clk 0:00:21]} 33. bxc3 {[%clk 0:01:14]}  Rxc3 {[%clk 0:00:20]} 34. Nxf5 {[%clk 0:01:09]}  Rb7+ {[%clk 0:00:16]} 35. Ka1 {[%clk 0:01:08]}  Be5 {[%clk 0:00:14]} 36. Nd4 {[%clk 0:01:07]}  Rxc2 {[%clk 0:00:13]} 37. Ba6 {[%clk 0:01:06]}  Rbb2 {[%clk 0:00:11]} 38. Bc4 {[%clk 0:00:59]}  Rb4 {[%clk 0:00:09]} 39. a3 {[%clk 0:00:30]}  Rbxc4 {[%clk 0:00:08]} 40. Kb1 {[%clk 0:00:31]}  Rxf2 {[%clk 0:00:05]} 41. Rhg1 {[%clk 0:00:29]}  Bxd4 {[%clk 0:00:04]} 42. Rxg6+ {[%clk 0:00:26]}  Kf7 {[%clk 0:00:05]} 43. Rg4 {[%clk 0:00:21]}  Rb2+ {[%clk 0:00:04]} 44. Ka1 {[%clk 0:00:22]}  Rb3+ {[%clk 0:00:04]} 45. Ka2 {[%clk 0:00:22]}  Rc2# {[%clk 0:00:04]} 0-1


[Site "https://www.chess.com"]

[Event "Titled Tuesday Blitz April 05 Early 2022"]
[White "Piesik, Piotr"]
[Black "Dobrov, Vladimir"]
[WhiteFideId "1136194"]
[BlackFideId "4136594"]
[WhiteElo "2190"]
[BlackElo "2575"]
[Result "0-1"]
[Round "05"]
[TimeControl "180+1"]
[Date "2022.04.05"]
[WhiteClock "0:02:18"]
[BlackClock "0:00:41"]

1. Nf3 {[%clk 0:03:00]}  d5 {[%clk 0:02:36]} 2. g3 {[%clk 0:02:59]}  Nd7 {[%clk 0:02:33]} 3. Bg2 {[%clk 0:02:59]}  e5 {[%clk 0:02:21]} 4. O-O {[%clk 0:03:00]}  Ngf6 {[%clk 0:02:20]} 5. d3 {[%clk 0:03:00]}  a5 {[%clk 0:02:19]} 6. Nbd2 {[%clk 0:03:00]}  a4 {[%clk 0:02:19]} 7. a3 {[%clk 0:02:58]}  c6 {[%clk 0:02:14]} 8. e4 {[%clk 0:02:58]}  Bd6 {[%clk 0:02:12]} 9. Qe2 {[%clk 0:02:56]}  O-O {[%clk 0:02:11]} 10. b4 {[%clk 0:02:47]}  axb3 {[%clk 0:02:08]} 11. cxb3 {[%clk 0:02:47]}  Re8 {[%clk 0:02:08]} 12. b4 {[%clk 0:02:44]}  Bxb4 {[%clk 0:02:05]} 13. Bb2 {[%clk 0:02:44]}  Bd6 {[%clk 0:02:02]} 14. Nb3 {[%clk 0:02:44]}  b6 {[%clk 0:01:36]} 15. Rfc1 {[%clk 0:02:40]}  Bb7 {[%clk 0:01:36]} 16. a4 {[%clk 0:02:39]}  Bf8 {[%clk 0:01:22]} 17. Bc3 {[%clk 0:02:37]}  d4 {[%clk 0:01:22]} 18. Bb2 {[%clk 0:02:37]}  c5 {[%clk 0:01:22]} 19. Nfd2 {[%clk 0:02:36]}  Bc6 {[%clk 0:01:21]} 20. a5 {[%clk 0:02:35]}  bxa5 {[%clk 0:01:19]} 21. Nc4 {[%clk 0:02:31]}  a4 {[%clk 0:01:18]} 22. Nbd2 {[%clk 0:02:31]}  Nb6 {[%clk 0:01:15]} 23. Ba3 {[%clk 0:02:31]}  Nxc4 {[%clk 0:01:13]} 24. Nxc4 {[%clk 0:02:31]}  Nd7 {[%clk 0:01:13]} 25. f4 {[%clk 0:02:27]}  exf4 {[%clk 0:01:08]} 26. gxf4 {[%clk 0:02:27]}  Rb8 {[%clk 0:01:09]} 27. Rab1 {[%clk 0:02:19]}  Qc7 {[%clk 0:01:02]} 28. e5 {[%clk 0:02:17]}  Bxg2 {[%clk 0:01:00]} 29. Qxg2 {[%clk 0:02:18]}  Rxb1 {[%clk 0:00:56]} 30. Rxb1 {[%clk 0:02:19]}  Rb8 {[%clk 0:00:56]} 31. Rxb8 {[%clk 0:02:19]}  Qxb8 {[%clk 0:00:44]} 32. Qd5 {[%clk 0:02:19]}  Qb1+ {[%clk 0:00:41]} 33. Kg2 {[%clk 0:02:19]}  Qxd3 {[%clk 0:00:41]} 34. e6 {[%clk 0:02:18]}  Qe2+ {[%clk 0:00:41]} 0-1


[Site "https://www.chess.com"]

[Event "Titled Tuesday Blitz April 05 Early 2022"]
[White "Pischal, Yulia"]
[Black "Ilyasli, Ughur"]
[WhiteFideId "14102390"]
[BlackFideId "13416197"]
[WhiteElo "1931"]
[BlackElo "2045"]
[Result "0-1"]
[Round "05"]
[TimeControl "180+1"]
[Date "2022.04.05"]
[WhiteClock "0:00:42"]
[BlackClock "0:00:22"]

1. e4 {[%clk 0:03:00]}  c5 {[%clk 0:03:00]} 2. d3 {[%clk 0:02:59]}  g6 {[%clk 0:02:59]} 3. g3 {[%clk 0:02:59]}  Bg7 {[%clk 0:02:58]} 4. Bg2 {[%clk 0:02:59]}  e6 {[%clk 0:02:58]} 5. f4 {[%clk 0:03:00]}  Ne7 {[%clk 0:02:58]} 6. Nf3 {[%clk 0:03:01]}  Nbc6 {[%clk 0:02:59]} 7. O-O {[%clk 0:03:01]}  d6 {[%clk 0:02:59]} 8. c3 {[%clk 0:03:01]}  O-O {[%clk 0:03:00]} 9. Qe2 {[%clk 0:03:02]}  Rb8 {[%clk 0:02:59]} 10. Na3 {[%clk 0:03:03]}  b5 {[%clk 0:02:59]} 11. Nc2 {[%clk 0:03:03]}  b4 {[%clk 0:02:58]} 12. Bd2 {[%clk 0:03:04]}  bxc3 {[%clk 0:02:57]} 13. bxc3 {[%clk 0:03:04]}  Qa5 {[%clk 0:02:55]} 14. e5 {[%clk 0:02:59]}  dxe5 {[%clk 0:02:36]} 15. Nxe5 {[%clk 0:02:58]}  Nxe5 {[%clk 0:02:32]} 16. fxe5 {[%clk 0:02:59]}  Ba6 {[%clk 0:02:26]} 17. c4 {[%clk 0:02:48]}  Qa4 {[%clk 0:02:11]} 18. Ne1 {[%clk 0:02:47]}  Rb2 {[%clk 0:02:09]} 19. Nf3 {[%clk 0:02:42]}  Nf5 {[%clk 0:01:48]} 20. Qf2 {[%clk 0:02:31]}  Bb7 {[%clk 0:01:18]} 21. g4 {[%clk 0:02:08]}  Bxf3 {[%clk 0:01:13]} 22. gxf5 {[%clk 0:02:08]}  Bxg2 {[%clk 0:01:10]} 23. Qxg2 {[%clk 0:02:04]}  exf5 {[%clk 0:01:06]} 24. Rae1 {[%clk 0:01:48]}  Qxa2 {[%clk 0:01:04]} 25. Re2 {[%clk 0:01:45]}  a5 {[%clk 0:00:42]} 26. h3 {[%clk 0:01:33]}  a4 {[%clk 0:00:42]} 27. Rff2 {[%clk 0:01:27]}  a3 {[%clk 0:00:40]} 28. Qd5 {[%clk 0:01:20]}  Qb1+ {[%clk 0:00:39]} 29. Kg2 {[%clk 0:01:20]}  a2 {[%clk 0:00:26]} 30. e6 {[%clk 0:01:20]}  fxe6 {[%clk 0:00:24]} 31. Rxe6 {[%clk 0:01:13]}  Kh8 {[%clk 0:00:23]} 32. Rfe2 {[%clk 0:00:53]}  Rxd2 {[%clk 0:00:22]} 33. Rxd2 {[%clk 0:00:45]}  a1=Q {[%clk 0:00:22]} 34. Rde2 {[%clk 0:00:42]}  Qh1+ {[%clk 0:00:22]} 35. Kf2 {[%clk 0:00:42]}  Qag1# {[%clk 0:00:22]} 0-1


[Site "https://www.chess.com"]

[Event "Titled Tuesday Blitz April 05 Early 2022"]
[White "Polster, Christian"]
[Black "Garv Gaur"]
[WhiteFideId "12965081"]
[BlackFideId "45030839"]
[WhiteElo "2323"]
[BlackElo "1950"]
[Result "1/2-1/2"]
[Round "05"]
[TimeControl "180+1"]
[Date "2022.04.05"]
[WhiteClock "0:00:03"]
[BlackClock "0:00:05"]

1. d4 {[%clk 0:03:00]}  d5 {[%clk 0:02:56]} 2. Bf4 {[%clk 0:03:01]}  Nf6 {[%clk 0:02:56]} 3. e3 {[%clk 0:03:01]}  c5 {[%clk 0:02:56]} 4. Nd2 {[%clk 0:03:00]}  Nc6 {[%clk 0:02:56]} 5. c3 {[%clk 0:03:00]}  cxd4 {[%clk 0:02:56]} 6. exd4 {[%clk 0:03:01]}  Bf5 {[%clk 0:02:56]} 7. Qb3 {[%clk 0:02:48]}  Qc8 {[%clk 0:02:54]} 8. Ngf3 {[%clk 0:02:45]}  e6 {[%clk 0:02:54]} 9. Be2 {[%clk 0:02:44]}  Be7 {[%clk 0:02:54]} 10. O-O {[%clk 0:02:38]}  O-O {[%clk 0:02:51]} 11. h3 {[%clk 0:02:29]}  Ne4 {[%clk 0:02:45]} 12. Rfe1 {[%clk 0:02:27]}  a6 {[%clk 0:02:38]} 13. a4 {[%clk 0:02:22]}  Na5 {[%clk 0:02:37]} 14. Qb6 {[%clk 0:02:11]}  Bd8 {[%clk 0:02:32]} 15. Qb4 {[%clk 0:02:09]}  Nc6 {[%clk 0:02:20]} 16. Qa3 {[%clk 0:01:57]}  Be7 {[%clk 0:02:18]} 17. Qb3 {[%clk 0:01:57]}  Nd6 {[%clk 0:01:58]} 18. Ne5 {[%clk 0:01:54]}  f6 {[%clk 0:01:38]} 19. Nxc6 {[%clk 0:01:31]}  Qxc6 {[%clk 0:01:38]} 20. Bg4 {[%clk 0:01:22]}  Bxg4 {[%clk 0:01:23]} 21. hxg4 {[%clk 0:01:21]}  Qd7 {[%clk 0:01:16]} 22. Re2 {[%clk 0:00:59]}  Rfe8 {[%clk 0:01:13]} 23. Rae1 {[%clk 0:00:58]}  Bf8 {[%clk 0:01:14]} 24. f3 {[%clk 0:00:27]}  b5 {[%clk 0:01:09]} 25. axb5 {[%clk 0:00:24]}  axb5 {[%clk 0:01:10]} 26. Bg3 {[%clk 0:00:09]}  Nc4 {[%clk 0:01:09]} 27. Nf1 {[%clk 0:00:06]}  Rac8 {[%clk 0:00:33]} 28. Ne3 {[%clk 0:00:05]}  Rc6 {[%clk 0:00:29]} 29. Ra1 {[%clk 0:00:05]}  b4 {[%clk 0:00:22]} 30. cxb4 {[%clk 0:00:04]}  Nxe3 {[%clk 0:00:22]} 31. Rxe3 {[%clk 0:00:05]}  Rb6 {[%clk 0:00:22]} 32. Ra4 {[%clk 0:00:02]}  Rc8 {[%clk 0:00:19]} 33. Rc3 {[%clk 0:00:02]}  Rxc3 {[%clk 0:00:16]} 34. bxc3 {[%clk 0:00:03]}  Qc6 {[%clk 0:00:14]} 35. Ra5 {[%clk 0:00:03]}  Rb7 {[%clk 0:00:12]} 36. Qa3 {[%clk 0:00:03]}  Qb6 {[%clk 0:00:11]} 37. Ra6 {[%clk 0:00:02]}  Qb5 {[%clk 0:00:11]} 38. Ra8 {[%clk 0:00:02]}  Rf7 {[%clk 0:00:08]} 39. Bd6 {[%clk 0:00:01]}  Qe2 {[%clk 0:00:05]} 40. b5 {[%clk 0:00:01]}  Qe1+ {[%clk 0:00:05]} 41. Kh2 {[%clk 0:00:01]}  Qh4+ {[%clk 0:00:04]} 42. Kg1 {[%clk 0:00:02]}  Qe1+ {[%clk 0:00:05]} 43. Kh2 {[%clk 0:00:02]}  Qh4+ {[%clk 0:00:04]} 44. Kg1 {[%clk 0:00:03]}  Qe1+ {[%clk 0:00:05]} 1/2-1/2


[Site "https://www.chess.com"]

[Event "Titled Tuesday Blitz April 05 Early 2022"]
[White "Rabineau, Clement"]
[Black "Adewumi, Tanitoluwa"]
[WhiteFideId "628891"]
[BlackFideId "30966396"]
[WhiteElo "2237"]
[BlackElo "2578"]
[Result "0-1"]
[Round "05"]
[TimeControl "180+1"]
[Date "2022.04.05"]
[WhiteClock "0:00:09"]
[BlackClock "0:01:08"]

1. e4 {[%clk 0:03:00]}  c5 {[%clk 0:02:59]} 2. c3 {[%clk 0:03:00]}  Nf6 {[%clk 0:02:56]} 3. e5 {[%clk 0:03:01]}  Nd5 {[%clk 0:02:55]} 4. Bc4 {[%clk 0:03:01]}  Nb6 {[%clk 0:02:55]} 5. Bb3 {[%clk 0:03:00]}  c4 {[%clk 0:02:54]} 6. Bc2 {[%clk 0:02:59]}  d5 {[%clk 0:02:53]} 7. exd6 {[%clk 0:02:57]}  Qxd6 {[%clk 0:02:52]} 8. Nf3 {[%clk 0:02:57]}  Nc6 {[%clk 0:02:46]} 9. O-O {[%clk 0:02:54]}  Bg4 {[%clk 0:02:33]} 10. b3 {[%clk 0:02:49]}  O-O-O {[%clk 0:02:26]} 11. Na3 {[%clk 0:02:31]}  Ne5 {[%clk 0:02:14]} 12. Nxc4 {[%clk 0:01:13]}  Nbxc4 {[%clk 0:02:09]} 13. bxc4 {[%clk 0:01:14]}  Nxf3+ {[%clk 0:01:50]} 14. gxf3 {[%clk 0:01:13]}  Bh3 {[%clk 0:01:51]} 15. Re1 {[%clk 0:01:07]}  e5 {[%clk 0:01:45]} 16. Rb1 {[%clk 0:00:41]}  f5 {[%clk 0:01:42]} 17. Kh1 {[%clk 0:00:30]}  e4 {[%clk 0:01:26]} 18. fxe4 {[%clk 0:00:21]}  Qf4 {[%clk 0:01:24]} 19. Qe2 {[%clk 0:00:13]}  Bg4 {[%clk 0:01:14]} 20. d4 {[%clk 0:00:09]}  Bf3+ {[%clk 0:01:08]} 0-1


[Site "https://www.chess.com"]

[Event "Titled Tuesday Blitz April 05 Early 2022"]
[White "Rodchenkov, Sergey D."]
[Black "Matthes, Aaron"]
[WhiteFideId "4168712"]
[BlackFideId "16227310"]
[WhiteElo "2306"]
[BlackElo "2340"]
[Result "1-0"]
[Round "05"]
[TimeControl "180+1"]
[Date "2022.04.05"]
[WhiteClock "0:00:18"]
[BlackClock "0:00:17"]

1. e4 {[%clk 0:03:00]}  e6 {[%clk 0:02:57]} 2. d4 {[%clk 0:03:00]}  d5 {[%clk 0:02:57]} 3. Nc3 {[%clk 0:03:01]}  Nf6 {[%clk 0:02:55]} 4. e5 {[%clk 0:03:01]}  Nfd7 {[%clk 0:02:55]} 5. f4 {[%clk 0:03:01]}  c5 {[%clk 0:02:56]} 6. Nf3 {[%clk 0:03:02]}  Nc6 {[%clk 0:02:56]} 7. Be3 {[%clk 0:03:02]}  a6 {[%clk 0:02:54]} 8. Ne2 {[%clk 0:02:59]}  Qb6 {[%clk 0:02:53]} 9. Qc1 {[%clk 0:02:58]}  cxd4 {[%clk 0:02:52]} 10. Nexd4 {[%clk 0:02:59]}  Bc5 {[%clk 0:02:52]} 11. c3 {[%clk 0:02:59]}  Bxd4 {[%clk 0:02:47]} 12. Nxd4 {[%clk 0:03:00]}  Nxd4 {[%clk 0:02:46]} 13. Bxd4 {[%clk 0:03:01]}  Qc7 {[%clk 0:02:45]} 14. Be2 {[%clk 0:02:50]}  f6 {[%clk 0:02:44]} 15. O-O {[%clk 0:02:48]}  O-O {[%clk 0:02:43]} 16. Qe3 {[%clk 0:02:38]}  b5 {[%clk 0:02:31]} 17. exf6 {[%clk 0:02:31]}  Nxf6 {[%clk 0:02:32]} 18. Bd3 {[%clk 0:02:26]}  Bd7 {[%clk 0:02:28]} 19. g3 {[%clk 0:02:25]}  Rae8 {[%clk 0:02:23]} 20. Qe2 {[%clk 0:02:21]}  Bc6 {[%clk 0:02:14]} 21. b3 {[%clk 0:01:53]}  Ne4 {[%clk 0:02:13]} 22. a4 {[%clk 0:01:53]}  bxa4 {[%clk 0:02:08]} 23. bxa4 {[%clk 0:01:54]}  Bb7 {[%clk 0:02:00]} 24. Rfc1 {[%clk 0:01:45]}  Rc8 {[%clk 0:01:53]} 25. a5 {[%clk 0:01:42]}  Qc6 {[%clk 0:01:47]} 26. Rab1 {[%clk 0:01:39]}  Rf7 {[%clk 0:01:38]} 27. Rb6 {[%clk 0:01:36]}  Qc7 {[%clk 0:01:35]} 28. Rxe6 {[%clk 0:01:25]}  Qxa5 {[%clk 0:01:24]} 29. f5 {[%clk 0:01:10]}  Qa3 {[%clk 0:01:12]} 30. Rb1 {[%clk 0:01:00]}  Nxc3 {[%clk 0:01:00]} 31. Re8+ {[%clk 0:00:30]}  Rf8 {[%clk 0:01:00]} 32. Qe6+ {[%clk 0:00:22]}  Kh8 {[%clk 0:00:59]} 33. Rxf8+ {[%clk 0:00:18]}  Rxf8 {[%clk 0:00:51]} 34. Rxb7 {[%clk 0:00:18]}  Qc1+ {[%clk 0:00:44]} 35. Bf1 {[%clk 0:00:17]}  Rg8 {[%clk 0:00:18]} 36. Bxg7+ {[%clk 0:00:17]}  Rxg7 {[%clk 0:00:17]} 37. Qe8+ {[%clk 0:00:17]}  Rg8 {[%clk 0:00:17]} 38. Qe5+ {[%clk 0:00:18]}  Rg7 {[%clk 0:00:17]} 39. Qxg7# {[%clk 0:00:18]} 1-0


[Site "https://www.chess.com"]

[Event "Titled Tuesday Blitz April 05 Early 2022"]
[White "Samant Aditya S"]
[Black "Brodowski, Piotr"]
[WhiteFideId "35080580"]
[BlackFideId "1124480"]
[WhiteElo "1916"]
[BlackElo "2422"]
[Result "1-0"]
[Round "05"]
[TimeControl "180+1"]
[Date "2022.04.05"]
[WhiteClock "0:00:20"]
[BlackClock "0:00:02"]

1. d4 {[%clk 0:03:00]}  c5 {[%clk 0:02:59]} 2. d5 {[%clk 0:03:00]}  d6 {[%clk 0:02:55]} 3. e4 {[%clk 0:02:56]}  Nf6 {[%clk 0:02:54]} 4. Nc3 {[%clk 0:02:57]}  g6 {[%clk 0:02:54]} 5. Be2 {[%clk 0:02:52]}  Bg7 {[%clk 0:02:54]} 6. Nf3 {[%clk 0:02:52]}  O-O {[%clk 0:02:53]} 7. O-O {[%clk 0:02:52]}  Na6 {[%clk 0:02:53]} 8. Bf4 {[%clk 0:02:35]}  Nc7 {[%clk 0:02:53]} 9. a4 {[%clk 0:02:32]}  b6 {[%clk 0:02:47]} 10. Nd2 {[%clk 0:02:30]}  Bb7 {[%clk 0:02:35]} 11. Nc4 {[%clk 0:02:28]}  Re8 {[%clk 0:01:48]} 12. Bg3 {[%clk 0:02:22]}  Nd7 {[%clk 0:01:43]} 13. Qd2 {[%clk 0:02:16]}  a6 {[%clk 0:01:37]} 14. Bg4 {[%clk 0:02:12]}  b5 {[%clk 0:00:46]} 15. Bxd7 {[%clk 0:02:00]}  Qxd7 {[%clk 0:00:27]} 16. Nb6 {[%clk 0:02:00]}  Qd8 {[%clk 0:00:27]} 17. Nxa8 {[%clk 0:02:00]}  Bxa8 {[%clk 0:00:28]} 18. axb5 {[%clk 0:01:57]}  axb5 {[%clk 0:00:29]} 19. Ra2 {[%clk 0:01:37]}  b4 {[%clk 0:00:29]} 20. Ne2 {[%clk 0:01:36]}  e6 {[%clk 0:00:18]} 21. dxe6 {[%clk 0:01:24]}  Nxe6 {[%clk 0:00:16]} 22. f3 {[%clk 0:01:00]}  d5 {[%clk 0:00:16]} 23. exd5 {[%clk 0:00:48]}  Qxd5 {[%clk 0:00:16]} 24. Qxd5 {[%clk 0:00:43]}  Bxd5 {[%clk 0:00:16]} 25. b3 {[%clk 0:00:44]}  c4 {[%clk 0:00:12]} 26. Ra5 {[%clk 0:00:41]}  Bc6 {[%clk 0:00:05]} 27. bxc4 {[%clk 0:00:38]}  Nd4 {[%clk 0:00:03]} 28. Nxd4 {[%clk 0:00:38]}  Bxd4+ {[%clk 0:00:04]} 29. Bf2 {[%clk 0:00:38]}  Bc3 {[%clk 0:00:04]} 30. Ra6 {[%clk 0:00:35]}  Bd7 {[%clk 0:00:04]} 31. Rb6 {[%clk 0:00:32]}  Re2 {[%clk 0:00:03]} 32. Rd1 {[%clk 0:00:22]}  Bf5 {[%clk 0:00:02]} 33. Bd4 {[%clk 0:00:20]} 1-0


[Site "https://www.chess.com"]

[Event "Titled Tuesday Blitz April 05 Early 2022"]
[White "Sanchez, Robert"]
[Black "Ardila, Oscar Humberto"]
[WhiteFideId "2034360"]
[BlackFideId "4404742"]
[WhiteElo "2282"]
[BlackElo "1983"]
[Result "1-0"]
[Round "05"]
[TimeControl "180+1"]
[Date "2022.04.05"]
[WhiteClock "0:00:52"]
[BlackClock "0:00:07"]

1. e4 {[%clk 0:03:00]}  e5 {[%clk 0:03:00]} 2. Nf3 {[%clk 0:03:01]}  Nf6 {[%clk 0:03:00]} 3. Nxe5 {[%clk 0:02:59]}  d6 {[%clk 0:03:00]} 4. Nf3 {[%clk 0:02:59]}  Nxe4 {[%clk 0:03:01]} 5. d4 {[%clk 0:03:00]}  Be7 {[%clk 0:03:00]} 6. Bd3 {[%clk 0:03:00]}  d5 {[%clk 0:02:59]} 7. O-O {[%clk 0:02:59]}  Nc6 {[%clk 0:03:00]} 8. h3 {[%clk 0:03:00]}  O-O {[%clk 0:02:58]} 9. c3 {[%clk 0:03:00]}  Bf5 {[%clk 0:02:55]} 10. Re1 {[%clk 0:02:59]}  Bg6 {[%clk 0:02:54]} 11. a4 {[%clk 0:02:59]}  a5 {[%clk 0:02:54]} 12. Na3 {[%clk 0:02:59]}  Bf6 {[%clk 0:02:52]} 13. Bf4 {[%clk 0:02:58]}  Re8 {[%clk 0:02:51]} 14. Nb5 {[%clk 0:02:57]}  Rc8 {[%clk 0:02:51]} 15. Rc1 {[%clk 0:02:54]}  Qd7 {[%clk 0:02:50]} 16. c4 {[%clk 0:02:47]}  Nb4 {[%clk 0:02:41]} 17. Bb1 {[%clk 0:02:38]}  c6 {[%clk 0:02:36]} 18. Nc3 {[%clk 0:02:14]}  Re7 {[%clk 0:02:10]} 19. Ne5 {[%clk 0:02:04]}  Bxe5 {[%clk 0:02:09]} 20. Bxe5 {[%clk 0:02:03]}  f6 {[%clk 0:02:03]} 21. Bf4 {[%clk 0:01:53]}  Rce8 {[%clk 0:02:03]} 22. Nxe4 {[%clk 0:01:29]}  Bxe4 {[%clk 0:02:00]} 23. Bxe4 {[%clk 0:01:29]}  Rxe4 {[%clk 0:02:01]} 24. Rxe4 {[%clk 0:01:30]}  Rxe4 {[%clk 0:02:02]} 25. Be3 {[%clk 0:01:28]}  dxc4 {[%clk 0:01:58]} 26. Rxc4 {[%clk 0:01:27]}  Nd5 {[%clk 0:01:58]} 27. Qf3 {[%clk 0:01:22]}  Qe6 {[%clk 0:01:45]} 28. Bd2 {[%clk 0:01:05]}  Re2 {[%clk 0:01:33]} 29. Bxa5 {[%clk 0:00:56]}  Rxb2 {[%clk 0:01:15]} 30. Rc1 {[%clk 0:00:55]}  Kf7 {[%clk 0:00:47]} 31. Re1 {[%clk 0:00:53]}  Qd7 {[%clk 0:00:12]} 32. Qh5+ {[%clk 0:00:52]}  g6 {[%clk 0:00:07]} 33. Qxh7+ {[%clk 0:00:52]} 1-0


[Site "https://www.chess.com"]